fUST/lending_fUST_20251219
["ID","MTS","AMOUNT","RATE_DAILY","PERIOD"]
[399034959,1766079047821,-337.2,0.00033549,2]
[399034960,1766079047838,-9244.26708605,0.00033549,2]
[399034961,1766079047860,-1331.62,0.00033549,2]
[399034964,1766079243675,1000.0,0.00013821,2]
[399034965,1766079243728,500.0,0.00013273,2]
[399034966,1766079243780,1500.0,0.00014368,2]
[399034967,1766079243808,500.0,0.00014916,2]
[399034968,1766079244020,1000.0,0.00013821,2]
[399034969,1766079244075,500.0,0.00013273,2]
[399034970,1766079244122,1500.0,0.00014368,2]
[399034971,1766079244178,2000.0,0.00014916,2]
[399034972,1766079244235,2500.0,0.00015464,2]
[399034973,1766079244294,258.04135746,0.00016012,2]
[399034974,1766079250562,500.0,0.00013699,2]
[399034975,1766079250613,1000.0,0.00014247,2]
[399034976,1766079250644,1500.0,0.00014795,2]
[399034977,1766079250671,2000.0,0.00015342,2]
[399034978,1766079250726,247.8101397,0.0001589,2]
[399034979,1766079250992,1000.0,0.00014247,2]
[399034980,1766079251046,500.0,0.00013699,2]
[399034981,1766079251095,1500.0,0.00014795,2]
[399034982,1766079251159,2000.0,0.00015342,2]
[399034983,1766079251190,500.0,0.00013273,2]
[399034984,1766079251224,2500.0,0.0001589,2]
[399034985,1766079251257,506.84043688,0.0001656,2]
[399034986,1766079251286,2000.0,0.00014916,2]
[399034987,1766079251318,1262.33874449,0.00016438,2]
[399034988,1766079251348,1000.0,0.00013821,2]
[399034989,1766079251380,3000.0,0.00016012,2]
[399034990,1766079251411,1500.0,0.00014368,2]
[399034991,1766079251439,2500.0,0.00015464,2]
[399034992,1766079253789,500.0,0.00013273,2]
[399034993,1766079253815,1000.0,0.00013821,2]
[399034994,1766079253850,3500.0,0.0001656,2]
[399034995,1766079253880,2500.0,0.00015464,2]
[399034996,1766079253926,1500.0,0.00014368,2]
[399034997,1766079253978,2000.0,0.00014916,2]
[399034998,1766079254229,3000.0,0.00016012,2]
[399034999,1766079254389,1024.18844354,0.00017108,2]
[399035000,1766079254730,500.0,0.00013273,2]
[399035001,1766079254776,1000.0,0.00013821,2]
[399035002,1766079254828,2000.0,0.00014916,2]
[399035003,1766079254880,1500.0,0.00014368,2]
[399035004,1766079254912,2500.0,0.00015464,2]
[399035005,1766079254943,3000.0,0.00016012,2]
[399035006,1766079254996,2934.22198915,0.0001656,2]
[399035008,1766079307491,1000.0,0.00013821,2]
[399035009,1766079307534,1500.0,0.00014368,2]
[399035010,1766079307594,2000.0,0.00014916,2]
[399035011,1766079307655,2500.0,0.00015464,2]
[399035012,1766079307713,2393.08224558,0.00016012,2]
[399035013,1766079310736,500.0,0.00013273,2]
[399035014,1766079322514,1000.0,0.00013821,2]
[399035015,1766079322555,500.0,0.00014916,2]
[399035016,1766079322595,1500.0,0.00014368,2]
[399035017,1766079322640,500.0,0.00013273,2]
[399035018,1766079333192,70988.51216794,0.0002,2]
[399035019,1766079422972,500.0,0.00013273,2]
[399035020,1766079423000,500.0,0.00013273,2]
[399035021,1766079423030,1016.58909271,0.00016012,2]
[399035022,1766079423065,1000.0,0.00013821,2]
[399035023,1766079423095,1000.0,0.00013821,2]
[399035024,1766079423122,1500.0,0.00014368,2]
[399035025,1766079423171,1500.0,0.00014368,2]
[399035026,1766079423199,2000.0,0.00014916,2]
[399035027,1766079423237,500.0,0.00014916,2]
[399035028,1766079423264,2500.0,0.00015464,2]
[399035030,1766079441229,168.351118,0.00013699,2]
[399035031,1766079726321,500.0,0.00013699,2]
[399035032,1766079726353,1000.0,0.00014247,2]
[399035033,1766079726420,507.0631427,0.00015342,2]
[399035034,1766079726472,1500.0,0.00014795,2]
[399035036,1766080016095,10000.0,0.00021501,2]
[399035037,1766080026224,10000.0,0.00021501,2]
[399035038,1766080039168,4546.87,0.00021501,2]
[399035103,1766080231956,-5000.0,0.00023728,2]
[399035105,1766080231966,-150.0,0.0002415,2]
[399035107,1766080231976,-1999.98,0.00024702,120]
[399035108,1766080231985,-166.0,0.00026011,120]
[399035110,1766080231994,-177.0,0.0002615,2]
[399035112,1766080232003,-300.0,0.00026516,2]
[399035114,1766080232013,-64802.555231,0.00026517,2]
[399035116,1766080232023,-240.96228275,0.00026535,2]
[399035118,1766080232032,-2275.65384743,0.00026635,30]
[399035121,1766080232044,-1428.97879449,0.00026635,30]
[399035194,1766080237743,-268.61921822,0.00026635,30]
[399035195,1766080237797,-2513.32813986,0.00026635,30]
[399035196,1766080237806,-8438.63424017,0.00026636,2]
[399035197,1766080237851,-706.64386769,0.00026636,2]
[399035327,1766080239906,-3609.90959394,0.00026636,2]
[399035329,1766080239915,-600.0,0.00027046,30]
[399035331,1766080239924,-168.0,0.00027144,120]
[399035333,1766080239934,-166.0,0.00027144,120]
[399035334,1766080239944,-236.10380528,0.0002815,2]
[399035336,1766080239953,-168.0,0.00028501,120]
[399035338,1766080239961,-166.0,0.00028501,120]
[399035340,1766080239971,-2001.631109,0.00028848,2]
[399035342,1766080239980,-160.0,0.0002975,2]
[399035344,1766080239989,-720.0,0.00029751,30]
[399035346,1766080239998,-166.0,0.00029927,120]
[399035348,1766080240008,-628.4,0.0002995,10]
[399035350,1766080240017,-500.0,0.0002996,2]
[399035352,1766080240026,-228.19208795,0.0002996,2]
[399035354,1766080240035,-500.0,0.0002996,2]
[399035356,1766080240044,-613.53635643,0.0002996,2]
[399035358,1766080240053,-198.86146162,0.0002996,2]
[399035360,1766080240062,-500.0,0.0002996,2]
[399035362,1766080240071,-500.0,0.0002996,2]
[399035364,1766080240080,-500.0,0.0002996,2]
[399035365,1766080240089,-500.0,0.0002996,2]
[399035368,1766080240098,-500.0,0.0002996,2]
[399035370,1766080240108,-500.0,0.0002996,2]
[399035371,1766080240117,-500.0,0.0002996,2]
[399035373,1766080240127,-500.0,0.0002996,2]
[399035375,1766080240136,-60.46361962,0.0002996,2]
[399035378,1766080240147,-439.53638038,0.0002996,2]
[399035380,1766080240156,-3080.08673485,0.0002996,30]
[399035382,1766080240167,-1785.23543838,0.0002996,30]
[399035384,1766080240181,-1054.569092,0.0002996,30]
[399035387,1766080240194,-566.68873477,0.0002996,30]
[399035389,1766080240203,-495.00279792,0.0002996,30]
[399035632,1766080242797,-418.93857618,0.0002996,30]
[399035635,1766080242812,-127.72529257,0.0002996,30]
[399035637,1766080242823,-968.6749,0.00029961,2]
[399035639,1766080242834,-4430.55,0.00029961,2]
[399035647,1766080242904,-777.17506577,0.00029961,2]
[399035649,1766080242915,-10205.40491608,0.00029961,2]
[399035652,1766080242927,-944.88986395,0.00029961,2]
[399035654,1766080242938,-260.0,0.00030298,2]
[399035656,1766080242948,-480.30237369,0.00030603,2]
[399035658,1766080242958,-209.00526511,0.00030846,2]
[399036013,1766080246542,-150.99473489,0.00030846,2]
[399036015,1766080246552,-460.0,0.00031394,2]
[399036017,1766080246562,-580.0,0.00031942,2]
[399036019,1766080246571,-240.9622827,0.00031984,2]
[399036020,1766080246580,-1041.66666667,0.00032216,2]
[399036023,1766080246590,-1000.0,0.000325,20]
[399036024,1766080246599,-5371.63898928,0.00032724,2]
[399036029,1766080246635,-4628.36101072,0.00032724,2]
[399036031,1766080246645,-864.0,0.00032726,30]
[399036033,1766080246655,-500.0,0.00032876,2]
[399036035,1766080246665,-500.0,0.00032876,2]
[399036037,1766080246675,-184.783,0.00032883,34]
[399036039,1766080246685,-215.11,0.0003299,3]
[399036041,1766080246700,-645.34,0.0003299,3]
[399036043,1766080246710,-6486.58,0.00032997,30]
[399036045,1766080246720,-500.0,0.00032997,2]
[399036047,1766080246730,-368.6565029,0.00032998,2]
[399036049,1766080246740,-181.7473721,0.00033,2]
[399036051,1766080246750,-1793.31626374,0.00033,2]
[399036053,1766080246760,-344.416113,0.00033071,2]
[399036056,1766080246770,-430.22,0.00033537,3]
[399036058,1766080246780,-860.43,0.00033538,3]
[399036060,1766080246789,-6486.58,0.00033548,30]
[399036061,1766080246799,-500.0,0.00033548,2]
[399036063,1766080246808,-500.0,0.00033549,2]
[399036065,1766080246818,-17927.41850174,0.00033549,2]
[399036067,1766080246831,-180.692935,0.00033549,31]
[399036069,1766080246840,-151.0,0.00033549,31]
[399036071,1766080246849,-151.0,0.00033549,31]
[399036074,1766080246859,-430.22,0.0003436,3]
[399036076,1766080246869,-860.44,0.00034907,3]
[399036078,1766080246879,-1720.86,0.00034908,3]
[399036080,1766080246888,-1049.1533078,0.00034958,5]
[399036082,1766080246897,-418.94,0.00034989,10]
[399036084,1766080246906,-6486.58,0.00034999,30]
[399036086,1766080246915,-500.0,0.00034999,2]
[399036088,1766080246924,-1190.24760768,0.00035,30]
[399036090,1766080246933,-659.53411538,0.00035,2]
[399036092,1766080246944,-421.76370771,0.00035,15]
[399036094,1766080246954,-2000.40147977,0.00035,120]
[399036096,1766080246963,-291.72,0.00035,7]
[399036098,1766080246972,-1000.0,0.00035998,30]
[399036100,1766080246981,-6486.58,0.00035999,30]
[399036102,1766080246990,-500.0,0.00035999,2]
[399036104,1766080246999,-10466.999999,0.00036,30]
[399036106,1766080247009,-1041.66666667,0.00036,30]
[399036108,1766080247018,-151.0,0.00036,31]
[399036110,1766080247027,-151.0,0.00036,31]
[399036112,1766080247036,-1445.76,0.00036,2]
[399036114,1766080247046,-151.0,0.00036,31]
[399036116,1766080247055,-2581.29,0.00036366,3]
[399036118,1766080247064,-20000.0,0.00036376,2]
[399036120,1766080247073,-6486.58,0.00036974,30]
[399036122,1766080247082,-500.0,0.00036974,2]
[399036124,1766080247091,-4000.0,0.00037,3]
[399036126,1766080247100,-283.465376,0.00037,31]
[399036128,1766080247109,-151.0,0.00037,31]
[399036130,1766080247119,-1041.66666667,0.00037,3]
[399036132,1766080247128,-151.0,0.00037,31]
[399036134,1766080247138,-151.0,0.00037008,31]
[399036136,1766080247147,-151.0,0.00037008,31]
[399036138,1766080247157,-151.0,0.00037008,31]
[399036140,1766080247166,-151.0,0.00037008,31]
[399036142,1766080247176,-151.0,0.0003701,31]
[399036144,1766080247185,-151.0,0.0003701,31]
[399036146,1766080247197,-6486.58,0.0003701,30]
[399036148,1766080247207,-500.0,0.0003701,2]
[399036150,1766080247217,-2146.0,0.00037011,2]
[399036152,1766080247225,-632.0,0.00037011,2]
[399036154,1766080247234,-1361.0,0.00037011,2]
[399036156,1766080247243,-151.0,0.00037303,31]
[399036158,1766080247252,-151.0276,0.00037303,31]
[399036160,1766080247261,-151.0,0.00037303,31]
[399036162,1766080247271,-151.0,0.00037303,31]
[399036164,1766080247280,-6486.58,0.00037304,30]
[399036166,1766080247289,-500.0,0.00037304,2]
[399036168,1766080247298,-151.0,0.00037305,31]
[399036170,1766080247308,-151.0,0.00037305,31]
[399036172,1766080247317,-2581.3,0.0003736,3]
[399036174,1766080247326,-240.9622827,0.00037433,2]
[399036176,1766080247335,-5162.58,0.00037736,3]
[399036178,1766080247345,-20740.0,0.00037745,2]
[399036180,1766080247355,-151.0,0.00037745,31]
[399036182,1766080247364,-317.28553297,0.0003784,120]
[399036183,1766080247373,-4000.0,0.000379,3]
[399036185,1766080247383,-151.0,0.000379,31]
[399036186,1766080247392,-151.0,0.000379,31]
[399036188,1766080247401,-151.0,0.000379,31]
[399036190,1766080247411,-151.0,0.000379,31]
[399036191,1766080247421,-299.967468,0.00037936,2]
[399036192,1766080247431,-6486.58,0.00037988,30]
[399036193,1766080247442,-6486.58,0.00037988,30]
[399036194,1766080247451,-151.0,0.00037989,31]
[399036195,1766080247461,-151.0,0.00037989,31]
[399036196,1766080247470,-151.0,0.00037989,31]
[399036197,1766080247480,-151.0,0.00037989,31]
[399036198,1766080247489,-151.0,0.00037989,31]
[399036199,1766080247498,-151.0,0.00037989,31]
[399036200,1766080247507,-1041.66666667,0.00037989,30]
[399036201,1766080247515,-151.0,0.00037989,31]
[399036202,1766080247522,-151.0,0.0003799,31]
[399036203,1766080247530,-151.0,0.0003799,31]
[399036204,1766080247539,-6486.58,0.00037999,30]
[399036206,1766080247548,-10642.0,0.00038,30]
[399036207,1766080247556,-19713.38490797,0.00038,30]
[399036233,1766080367211,300.0,0.00022019,120]
[399036234,1766080382850,500.47271545,0.00013273,2]
[399036235,1766080382992,500.58193042,0.00013273,2]
[399036236,1766080383019,501.26491579,0.00013273,2]
[399036237,1766080386687,635.19392553,0.00013273,2]
[399036238,1766080386822,500.0,0.00013273,2]
[399036239,1766080387840,501.12574512,0.00013273,2]
[399036240,1766080390244,501.42230241,0.00013273,2]
[399036241,1766080393000,500.0,0.00013273,2]
[399036242,1766080397445,171.23046597,0.00013273,2]
[399036243,1766080399877,502.0021657,0.00013273,2]
[399036244,1766080401035,501.04215451,0.00013273,2]
[399036245,1766080411638,150.0,8.596e-05,2]
[399036246,1766080412125,150.0,9.005e-05,2]
[399036247,1766080412528,150.0,9.414e-05,2]
[399036248,1766080413279,166.25,9.823e-05,2]
[399036249,1766080413690,207.81,0.00010233,2]
[399036250,1766080414096,249.38,0.00010642,2]
[399036251,1766080414488,290.94,0.00011051,2]
[399036252,1766080414909,332.5,0.00011461,2]
[399036253,1766080415345,374.07,0.0001187,2]
[399036254,1766080415889,415.63,0.00012279,2]
[399036255,1766080443086,500.80695146,0.00013699,2]
[399036256,1766080446446,425.74949727,0.00013699,2]
[399036257,1766080451324,500.0,0.00013273,2]
[399036258,1766080451483,500.0,0.00013273,2]
[399036259,1766080451615,272.53723037,0.00013699,2]
[399036260,1766080451638,227.46276963,0.00013699,2]
[399036261,1766080452826,500.0,0.00013273,2]
[399036262,1766080456390,260.82692028,0.00013273,2]
[399036263,1766080457369,501.56179094,0.00013273,2]
[399036265,1766080484251,150.0,8.471e-05,2]
[399036266,1766080484667,150.0,8.875e-05,2]
[399036267,1766080485118,153.64,9.278e-05,2]
[399036268,1766080485537,204.85,9.682e-05,2]
[399036269,1766080485947,256.06,0.00010085,2]
[399036270,1766080486345,307.27,0.00010488,2]
[399036271,1766080486784,358.48,0.00010892,2]
[399036272,1766080487327,409.69,0.00011295,2]
[399036273,1766080487576,460.91,0.00011698,2]
[399036274,1766080488017,512.12,0.00012102,2]
[399036275,1766080503163,500.17287708,0.00013699,2]
[399036276,1766080503189,501.02886941,0.00013699,2]
[399036277,1766080506443,500.0,0.00013273,2]
[399036278,1766080512520,500.0,0.00013699,2]
[399036279,1766080512577,1099.54987091,0.00014247,2]
[399036280,1766080559268,150.0,8.213e-05,2]
[399036281,1766080559677,150.0,8.604e-05,2]
[399036282,1766080560077,150.0,8.995e-05,2]
[399036283,1766080560477,150.0,9.386e-05,2]
[399036284,1766080560890,150.0,9.777e-05,2]
[399036285,1766080561296,163.6,0.00010169,2]
[399036286,1766080561712,190.86,0.0001056,2]
[399036287,1766080562201,218.13,0.00010951,2]
[399036288,1766080562634,245.4,0.00011342,2]
[399036289,1766080563041,272.66,0.00011733,2]
[399036290,1766080563538,500.63419994,0.00013699,2]
[399036291,1766080563831,500.75197513,0.00013699,2]
[399036292,1766080566491,500.0,0.00013273,2]
[399036293,1766080566584,1000.0,0.00013821,2]
[399036294,1766080566622,500.0,0.00013273,2]
[399036295,1766080571724,500.0,0.00013699,2]
[399036296,1766080571776,1000.0,0.00014247,2]
[399036297,1766080571843,557.22220753,0.00015342,2]
[399036298,1766080571864,1442.77779247,0.00015342,2]
[399036299,1766080571945,1500.0,0.00014795,2]
[399036300,1766080573909,500.0,0.00013699,2]
[399036301,1766080573959,1500.0,0.00014795,2]
[399036302,1766080574012,1000.0,0.00014247,2]
[399036303,1766080574067,1500.0,0.00015342,2]
[399036304,1766080576668,500.0,0.00013699,2]
[399036305,1766080576728,1000.0,0.00014247,2]
[399036306,1766080576786,1057.23220753,0.00014795,2]
[399036307,1766080576807,350.82571943,0.00014795,2]
[399036308,1766080624465,500.94548527,0.00013273,2]
[399036309,1766080624759,500.95767197,0.00013273,2]
[399036310,1766080629287,150.0,0.00011286,2]
[399036311,1766080629734,150.0,0.00011823,2]
[399036312,1766080630181,193.51,0.00012361,2]
[399036313,1766080630601,258.02,0.00012898,2]
[399036314,1766080630992,322.52,0.00013436,2]
[399036315,1766080631401,387.03,0.00013973,2]
[399036316,1766080631794,451.53,0.0001451,2]
[399036317,1766080632290,516.04,0.00015048,2]
[399036318,1766080632695,580.54,0.00015585,2]
[399036319,1766080633130,645.05,0.00016123,2]
[399036321,1766080684231,501.27534957,0.00013273,2]
[399036322,1766080684504,500.60108099,0.00013273,2]
[399036323,1766080684609,500.95679367,0.00013273,2]
[399036324,1766080685252,501.80992109,0.00013273,2]
[399036325,1766080703817,150.0,0.00014876,2]
[399036326,1766080704231,150.0,0.00015584,2]
[399036327,1766080705076,150.64,0.00016293,2]
[399036328,1766080705489,200.85,0.00017001,2]
[399036329,1766080705890,251.07,0.00017709,2]
[399036330,1766080706287,301.28,0.00018418,2]
[399036331,1766080706751,351.49,0.00019126,2]
[399036332,1766080707134,401.71,0.00019834,2]
[399036333,1766080707661,451.92,0.00020543,2]
[399036334,1766080708092,502.14,0.00021251,2]
[399036336,1766080744081,500.0,0.00013273,2]
[399036337,1766080744456,630.50093559,0.00013273,2]
[399036338,1766080781221,150.0,0.00012975,2]
[399036339,1766080781644,150.0,0.00013593,2]
[399036340,1766080782052,150.0,0.00014211,2]
[399036341,1766080782447,150.0,0.00014829,2]
[399036342,1766080783307,150.0,0.00015446,2]
[399036343,1766080783717,150.0,0.00016064,2]
[399036351,1766080848520,235.89222042,0.00021501,2]
[399036352,1766080866255,500.45758173,0.00013273,2]
[399036353,1766080866283,500.0,0.00013699,2]
[399036354,1766080866311,1000.86079436,0.00014247,2]
[399036355,1766080866342,501.72942575,0.00013273,2]
[399036356,1766080866370,500.61846317,0.00013273,2]
[399036357,1766080866397,208.07300571,0.00014247,2]
[399036358,1766080866425,500.0,0.00013273,2]
[399036359,1766080866457,500.0,0.00013699,2]
[399036360,1766080866485,1000.0,0.00013821,2]
[399036361,1766080866680,1500.77161856,0.00014368,2]
[399036362,1766080866721,500.0,0.00013273,2]
[399036363,1766080866760,541.85593365,0.00013821,2]
[399036364,1766080926480,500.0,0.00013273,2]
[399036365,1766080927168,612.4570163,0.000183,2]
[399036366,1766080983636,500.0,0.00013273,2]
[399036367,1766080983691,500.77957617,0.00013273,2]
[399036368,1766080983724,1000.0,0.00013821,2]
[399036369,1766080983752,500.0,0.00013273,2]
[399036370,1766080983781,1500.52137794,0.00014368,2]
[399036371,1766080983808,1000.21638432,0.00013821,2]
[399036372,1766080983836,431.60166485,0.00014247,2]
[399036373,1766080983864,500.0,0.00013699,2]
[399036374,1766081043475,500.0,0.00013273,2]
[399036375,1766081043512,1000.0,0.00013821,2]
[399036376,1766081045500,263.63687707,0.00013273,2]
[399036377,1766081045930,500.0,0.00013699,2]
[399036384,1766081103607,500.37188907,0.00013273,2]
[399036385,1766081103681,500.0,0.00013699,2]
[399036386,1766081103736,866.34541767,0.00014247,2]
[399036387,1766081103847,500.0,0.00013699,2]
[399036388,1766081103908,1000.86769021,0.00014247,2]
[399036401,1766081223157,500.0,0.00013273,2]
[399036402,1766081223244,1000.83224965,0.00013821,2]
[399036404,1766081280518,157.52,8.238e-05,2]
[399036405,1766081280802,157.52,8.238e-05,2]
[399036406,1766081283360,500.44021797,0.00013699,2]
[399036407,1766081286121,500.49798192,0.00013699,2]
[399036408,1766081343621,500.0,0.00013273,2]
[399036409,1766081343676,1000.0,0.00014368,2]
[399036410,1766081343723,1000.0,0.00013821,2]
[399036614,1766081437946,-398.33717473,0.00022681,2]
[399036615,1766081437956,-5000.0,0.0002291,2]
[399036616,1766081437965,-150.0,0.00023026,2]
[399036617,1766081437975,-351.05627228,0.00024334,2]
[399036618,1766081437984,-300.0,0.00024819,2]
[399036619,1766081437994,-300.0,0.0002482,10]
[399036620,1766081438003,-300.0,0.0002482,10]
[399036621,1766081438012,-300.0,0.0002482,10]
[399036622,1766081438021,-300.0,0.0002482,10]
[399036623,1766081438031,-300.0,0.0002482,10]
[399036624,1766081438040,-300.0,0.0002482,10]
[399036625,1766081438049,-300.0,0.0002482,10]
[399036626,1766081438059,-300.0,0.0002482,10]
[399036627,1766081438069,-300.0,0.0002482,10]
[399036628,1766081438078,-300.0,0.0002482,10]
[399036629,1766081438088,-300.0,0.0002482,10]
[399036630,1766081438098,-300.0,0.0002482,10]
[399036631,1766081438108,-300.0,0.0002482,10]
[399036632,1766081438118,-300.0,0.0002482,10]
[399036633,1766081438127,-300.0,0.0002482,10]
[399036634,1766081438138,-152.91,0.0002482,2]
[399036635,1766081438148,-177.0,0.00025026,2]
[399036636,1766081438157,-152.91422674,0.00025094,2]
[399036637,1766081438167,-500.0,0.00026635,30]
[399036638,1766081438177,-2058.48,0.00026635,30]
[399036639,1766081438186,-2229.66,0.00026635,30]
[399036640,1766081438197,-500.0,0.00026635,30]
[399036641,1766081438208,-3264.12,0.00026891,30]
[399036642,1766081438217,-420.0,0.00026892,2]
[399036643,1766081438227,-160.0,0.00026933,2]
[399036644,1766081438237,-233.0,0.00027,60]
[399036645,1766081438246,-204.0,0.00027026,2]
[399036646,1766081438256,-3362.84,0.00027166,30]
[399036647,1766081438265,-1041.66666667,0.00027166,30]
[399036648,1766081438276,-500.0,0.00027166,10]
[399036649,1766081438288,-1339.98,0.00027166,30]
[399036650,1766081438298,-600.0,0.00027167,30]
[399036651,1766081438308,-235.89222042,0.00027324,56]
[399036652,1766081438318,-260.0,0.00027481,2]
[399036653,1766081438329,-360.0,0.00028029,2]
[399036654,1766081438339,-460.0,0.00028577,2]
[399036655,1766081438349,-1548.7861107,0.00028986,2]
[399036656,1766081438359,-300.91501377,0.00028986,2]
[399036657,1766081438369,-447.04144334,0.00028986,2]
[399036658,1766081438379,-233.76254089,0.00028986,2]
[399036659,1766081438391,-163.73269474,0.00028986,2]
[399036660,1766081438401,-231.0,0.00029026,2]
[399036661,1766081438412,-114.44870879,0.00029026,2]
[399036662,1766081438438,-34.0,0.00029026,2]
[399036663,1766081438449,-312.3506446,0.00029026,2]
[399036664,1766081438463,-1387.33064661,0.00029026,2]
[399036665,1766081438473,-587.0,0.00029139,2]
[399036666,1766081438484,-735.11,0.00029858,2]
[399036667,1766081438494,-500.0,0.00029858,2]
[399036668,1766081438503,-720.0,0.00029883,30]
[399036669,1766081438514,-299.71737131,0.00029956,2]
[399036670,1766081438524,-500.0,0.00029956,2]
[399036671,1766081438534,-500.0,0.00029956,2]
[399036672,1766081438544,-200.39300301,0.00029956,2]
[399036673,1766081438555,-500.0,0.00029956,2]
[399036674,1766081438565,-500.0,0.00029956,2]
[399036675,1766081438575,-500.0,0.00029956,2]
[399036676,1766081438586,-500.0,0.00029956,2]
[399036677,1766081438596,-500.0,0.00029956,2]
[399036678,1766081438606,-500.0,0.00029956,2]
[399036679,1766081438616,-500.0,0.00029956,2]
[399036680,1766081438625,-643.21004848,0.00029956,2]
[399036681,1766081438637,-500.0,0.00029956,2]
[399036682,1766081438647,-223.74451558,0.00029956,2]
[399036683,1766081438657,-500.0,0.00029956,2]
[399036684,1766081438667,-500.0,0.00029956,2]
[399036685,1766081438678,-500.0,0.00029956,2]
[399036686,1766081438688,-500.0,0.00029956,2]
[399036687,1766081438698,-1548.7861107,0.00029959,2]
[399036688,1766081438708,-500.0,0.00029959,30]
[399036689,1766081438718,-508.67588348,0.00029959,30]
[399036690,1766081438728,-3264.12,0.00029959,30]
[399036691,1766081438738,-500.0,0.00029959,2]
[399036692,1766081438748,-502.49977056,0.00029959,30]
[399036693,1766081438757,-500.0,0.00029959,30]
[399036694,1766081438767,-500.0,0.00029959,30]
[399036695,1766081438777,-500.0,0.00029959,30]
[399036696,1766081438786,-629.02815423,0.0002996,2]
[399036697,1766081438795,-189.37050767,0.0002996,30]
[399036698,1766081438805,-2058.48,0.0002996,30]
[399036699,1766081438814,-2229.66,0.0002996,30]
[399036700,1766081438824,-500.0,0.0002996,30]
[399036701,1766081438834,-500.0,0.00030132,2]
[399036702,1766081438844,-500.0,0.00030406,2]
[399036703,1766081438854,-250.0,0.00030624,2]
[399036704,1766081438863,-514.4932073,0.0003068,2]
[399036705,1766081438873,-3362.84,0.0003093,30]
[399036706,1766081438882,-500.0,0.0003093,10]
[399036707,1766081438891,-1339.98,0.0003093,30]
[399036708,1766081438901,-1548.7861107,0.00030931,2]
[399036709,1766081438910,-258.0,0.00031026,2]
[399036710,1766081438920,-300.91501377,0.00031068,2]
[399036711,1766081438929,-447.04144334,0.00031068,2]
[399036712,1766081438939,-823.0,0.00031573,2]
[399036713,1766081438949,-277.06220921,0.00031817,30]
[399036714,1766081438959,-1548.7861107,0.00031904,2]
[399036715,1766081438969,-327.14526977,0.00031999,2]
[399036716,1766081438978,-160.0,0.00031999,2]
[399036717,1766081438987,-1041.66666667,0.0003245,2]
[399036718,1766081438997,-233.76254089,0.00032838,2]
[399036719,1766081439006,-3264.12,0.00032871,30]
[399036720,1766081439016,-864.0,0.00032872,30]
[399036721,1766081439026,-500.0,0.00032876,2]
[399036722,1766081439035,-548.88988308,0.00032876,2]
[399036723,1766081439045,-1548.7861107,0.00032877,2]
[399036724,1766081439054,-1965.54425714,0.00032897,2]
[399036725,1766081439064,-150.287,0.00032962,34]
[399036726,1766081439074,-2058.48,0.00032997,30]
[399036727,1766081439083,-2229.66,0.00032997,30]
[399036728,1766081439094,-500.0,0.00032997,30]